fUST/lending_fUST_20240921
["ID","MTS","AMOUNT","RATE_DAILY","PERIOD"]
[338820071,1726926660428,-150.0,0.00016679,2]
[338820072,1726926660439,-600.0,0.00016703,2]
[338820073,1726926660449,-219.42990979,0.00016706,2]
[338820074,1726926660458,-383.9,0.00016712,2]
[338820075,1726926660468,-539.98,0.00016779,2]
[338820076,1726926660478,-500.0,0.00016779,2]
[338820077,1726926660488,-887.28,0.00016779,2]
[338820078,1726926660497,-200.0,0.00016779,2]
[338820079,1726926660507,-500.0,0.00016779,2]
[338820080,1726926660516,-500.0,0.00016779,2]
[338820081,1726926660524,-500.0,0.00016779,2]
[338820082,1726926660534,-14753.28,0.00016779,2]
[338820083,1726926660543,-2334.74,0.00016779,2]
[338820084,1726926660553,-508.15,0.0001678,2]
[338820085,1726926660562,-792.65,0.0001679,2]
[338820086,1726926660572,-645.64,0.0001679,2]
[338820087,1726926660581,-500.0,0.0001679,2]
[338820088,1726926660591,-500.0,0.0001679,2]
[338820089,1726926660601,-500.0,0.0001679,2]
[338820090,1726926660610,-1193.54,0.0001679,2]
[338820091,1726926660619,-596.93,0.0001679,2]
[338820092,1726926660629,-500.0,0.0001679,2]
[338820093,1726926660639,-500.0,0.0001679,2]
[338820094,1726926660648,-500.0,0.0001679,2]
[338820095,1726926660657,-500.0,0.0001679,2]
[338820096,1726926660667,-717.7,0.0001679,2]
[338820097,1726926660676,-500.0,0.0001679,2]
[338820098,1726926660685,-500.0,0.00016791,2]
[338820099,1726926660695,-508.0,0.00016791,2]
[338820100,1726926660703,-787.39,0.00016791,2]
[338820101,1726926660713,-500.0,0.00016791,2]
[338820102,1726926660724,-500.0,0.00016791,2]
[338820103,1726926660733,-500.0,0.00016791,2]
[338820104,1726926660743,-500.0,0.00016791,2]
[338820105,1726926660751,-1068.0,0.00016791,2]
[338820106,1726926660761,-500.0,0.00016791,2]
[338820107,1726926660770,-485.63,0.000168,4]
[338820108,1726926660779,-500.0,0.000168,2]
[338820109,1726926660788,-500.0,0.000168,2]
[338820110,1726926660797,-551.77,0.000168,2]
[338820111,1726926660807,-575.3,0.000168,2]
[338820112,1726926660816,-625.23,0.000168,2]
[338820113,1726926660826,-587.0,0.00016838,2]
[338820114,1726926660836,-927.96169,0.0001684,2]
[338820115,1726926660845,-643.59218028,0.00016846,2]
[338820116,1726926660854,-600.0,0.00016876,2]
[338820117,1726926660864,-6559.3681689,0.00016909,2]
[338820118,1726926660873,-153.0,0.00016932,2]
[338820119,1726926660883,-153.0,0.00016932,2]
[338820120,1726926660892,-153.0,0.00016932,2]
[338820121,1726926660902,-153.0,0.00016932,2]
[338820122,1726926660912,-153.0,0.00016932,2]
[338820123,1726926660921,-153.0,0.00016932,2]
[338820124,1726926660931,-153.0,0.00016932,2]
[338820125,1726926660940,-1000.0,0.00016935,2]
[338820126,1726926660950,-383.9,0.00016986,2]
[338820127,1726926660959,-369.698661,0.00016986,2]
[338820128,1726926660970,-1000.0,0.00017,2]
[338820129,1726926660979,-478.79470768,0.00017032,2]
[338820130,1726926660988,-600.0,0.00017048,2]
[338820131,1726926660998,-1000.0,0.00017052,2]
[338820132,1726926661007,-539.98,0.00017053,2]
[338820133,1726926661016,-500.0,0.00017053,2]
[338820134,1726926661026,-887.28,0.00017053,2]
[338820135,1726926661035,-200.0,0.00017053,2]
[338820136,1726926661044,-500.0,0.00017053,2]
[338820137,1726926661053,-629.23,0.00017053,2]
[338820138,1726926661063,-500.0,0.00017053,2]
[338820139,1726926661073,-14753.28,0.00017053,2]
[338820140,1726926661083,-2334.74,0.00017053,2]
[338820141,1726926661093,-508.15,0.00017054,2]
[338820142,1726926661103,-792.65,0.00017064,2]
[338820143,1726926661113,-645.64,0.00017064,2]
[338820144,1726926661124,-500.0,0.00017064,2]
[338820145,1726926661133,-500.0,0.00017064,2]
[338820146,1726926661142,-500.0,0.00017064,2]
[338820147,1726926661153,-1193.54,0.00017064,2]
[338820148,1726926661162,-596.93,0.00017064,2]
[338820149,1726926661171,-500.0,0.00017064,2]
[338820150,1726926661181,-500.0,0.00017064,2]
[338820151,1726926661190,-500.0,0.00017064,2]
[338820152,1726926661201,-500.0,0.00017064,2]
[338820153,1726926661212,-717.7,0.00017064,2]
[338820154,1726926661223,-500.0,0.00017064,2]
[338820155,1726926661233,-500.0,0.00017065,2]
[338820156,1726926661242,-508.0,0.00017065,2]
[338820157,1726926661251,-787.39,0.00017065,2]
[338820158,1726926661260,-500.0,0.00017065,2]
[338820159,1726926661269,-500.0,0.00017065,2]
[338820160,1726926661279,-500.0,0.00017065,2]
[338820161,1726926661288,-500.0,0.00017065,2]
[338820162,1726926661297,-1068.0,0.00017065,2]
[338820163,1726926661306,-823.0365064,0.00017068,2]
[338820164,1726926661315,-153.0,0.00017068,2]
[338820165,1726926661324,-153.0,0.00017068,2]
[338820166,1726926661334,-417.7733172,0.00017068,2]
[338820167,1726926661343,-153.0,0.00017068,2]
[338820168,1726926661353,-153.0,0.00017068,2]
[338820169,1726926661364,-500.0,0.00017074,2]
[338820170,1726926661373,-500.0,0.00017074,2]
[338820171,1726926661382,-551.77,0.00017074,2]
[338820172,1726926661391,-575.3,0.00017074,2]
[338820173,1726926661400,-625.23,0.00017074,2]
[338820174,1726926661409,-1000.0,0.00017074,2]
[338820175,1726926661419,-205.0,0.0001716,2]
[338820176,1726926661428,-1000.0,0.00017177,2]
[338820177,1726926661439,-410.07372012,0.00017189,2]
[338820178,1726926661452,-12070.00341736,0.00017189,2]
[338820179,1726926661463,-152.0,0.000172,2]
[338820180,1726926661474,-306.0,0.00017206,2]
[338820181,1726926661483,-5468.42095837,0.0001722,7]
[338820182,1726926661493,-600.0,0.0001722,2]
[338820183,1726926661503,-500.59493061,0.00017225,2]
[338820184,1726926661513,-383.9,0.0001726,2]
[338820185,1726926661523,-663.97882779,0.00017273,2]
[338820186,1726926661532,-208.8866586,0.00017281,2]
[338820187,1726926661543,-208.8866586,0.00017281,2]
[338820188,1726926661553,-208.8866586,0.00017281,2]
[338820189,1726926661562,-539.98,0.00017327,2]
[338820190,1726926661571,-500.0,0.00017327,2]
[338820191,1726926661581,-887.28,0.00017327,2]
[338820192,1726926661591,-200.0,0.00017327,2]
[338820193,1726926661600,-551.22346368,0.00017327,2]
[338820194,1726926661609,-500.0,0.00017327,2]
[338820195,1726926661620,-14753.28,0.00017327,2]
[338820196,1726926661631,-2334.74,0.00017327,2]
[338820197,1726926661641,-508.15,0.00017328,2]
[338820198,1726926661651,-156.199746,0.0001733,2]
[338820199,1726926661660,-792.65,0.00017338,2]
[338820200,1726926661669,-645.64,0.00017338,2]
[338820201,1726926661678,-500.0,0.00017338,2]
[338820202,1726926661688,-357.63210228,0.00017338,2]
[338820203,1726926661697,-500.0,0.00017338,2]
[338820204,1726926661707,-1193.54,0.00017338,2]
[338820205,1726926661718,-596.93,0.00017338,2]
[338820206,1726926661729,-500.0,0.00017338,2]
[338820207,1726926661738,-500.0,0.00017338,2]
[338820208,1726926661747,-500.0,0.00017338,2]
[338820209,1726926661756,-500.0,0.00017338,2]
[338820210,1726926661765,-717.7,0.00017338,2]
[338820211,1726926661774,-500.0,0.00017338,2]
[338820212,1726926661783,-500.0,0.00017339,2]
[338820213,1726926661793,-508.0,0.00017339,2]
[338820214,1726926661801,-787.39,0.00017339,2]
[338820215,1726926661810,-500.0,0.00017339,2]
[338820216,1726926661820,-500.0,0.00017339,2]
[338820217,1726926661829,-500.0,0.00017339,2]
[338820218,1726926661838,-533.895286,0.00017339,2]
[338820219,1726926661847,-1068.0,0.00017339,2]
[338820220,1726926661857,-927.96169,0.0001734,2]
[338820221,1726926661867,-2500.0,0.0001734,2]
[338820222,1726926661877,-306.0,0.00017342,2]
[338820223,1726926661887,-368.0,0.00017348,2]
[338820224,1726926661896,-500.0,0.00017348,2]
[338820225,1726926661905,-551.77,0.00017348,2]
[338820226,1726926661916,-575.3,0.00017348,2]
[338820227,1726926661925,-625.23,0.00017348,2]
[338820228,1726926661934,-2500.0,0.00017349,2]
[338820229,1726926661946,-2500.0,0.00017349,2]
[338820230,1726926661957,-2500.0,0.00017349,2]
[338820231,1726926661966,-600.0,0.00017392,2]
[338820232,1726926661976,-264.83037,0.000174,2]
[338820233,1726926661985,-1059.32148,0.000174,2]
[338820234,1726926661995,-160.0,0.00017485,4]
[338820235,1726926662004,-162.49675063,0.00017485,5]
[338820236,1726926662014,-160.0,0.00017485,5]
[338820237,1726926662023,-2500.0,0.00017492,2]
[338820238,1726926662034,-1069.83990776,0.000175,2]
[338820239,1726926662044,-1000.0,0.000175,2]
[338820240,1726926662054,-2500.0,0.000175,2]
[338820241,1726926662063,-2500.0,0.00017509,2]
[338820242,1726926662073,-2500.0,0.00017509,2]
[338820243,1726926662082,-2500.0,0.00017509,2]
[338820244,1726926662091,-500.0,0.00017515,2]
[338820245,1726926662100,-2500.0,0.00017518,2]
[338820246,1726926662109,-2500.0,0.00017518,2]
[338820247,1726926662118,-2500.0,0.00017518,2]
[338820248,1726926662127,-151.0,0.00017518,2]
[338820249,1726926662137,-151.0,0.00017518,2]
[338820250,1726926662147,-1353.282061,0.00017518,2]
[338820251,1726926662156,-1353.282061,0.00017518,2]
[338820252,1726926662165,-740.186254,0.00017518,2]
[338820253,1726926662176,-740.186254,0.00017518,2]
[338820254,1726926662186,-1106.068843,0.00017518,2]
[338820255,1726926662198,-3632.549123,0.00017518,2]
[338820256,1726926662209,-442.887488,0.00017518,2]
[338820257,1726926662219,-1106.068843,0.00017518,2]
[338820258,1726926662229,-442.887488,0.00017518,2]
[338820259,1726926662238,-151.0,0.00017518,2]
[338820260,1726926662248,-151.0,0.00017518,2]
[338820261,1726926662258,-151.0,0.00017518,2]
[338820262,1726926662268,-228.217079,0.00017518,2]
[338820263,1726926662277,-228.217079,0.00017518,2]
[338820264,1726926662286,-180.172731,0.00017518,2]
[338820265,1726926662297,-180.172731,0.00017518,2]
[338820266,1726926662307,-383.9,0.00017534,2]
[338820267,1726926662318,-160.0,0.00017555,5]
[338820268,1726926662328,-908.08197383,0.00017564,2]
[338820269,1726926662338,-2000.66059323,0.000176,2]
[338820270,1726926662348,-539.98,0.00017601,2]
[338820271,1726926662359,-500.0,0.00017601,2]
[338820272,1726926662369,-887.28,0.00017601,2]
[338820273,1726926662500,-200.0,0.00017601,2]
[338820274,1726926662510,-500.0,0.00017601,2]
[338820275,1726926662521,-14753.28,0.00017601,2]
[338820276,1726926662531,-2334.74,0.00017601,2]
[338820277,1726926662542,-508.15,0.00017602,2]
[338820278,1726926662552,-156.199746,0.00017609,2]
[338820279,1726926662561,-264.83037,0.00017609,2]
[338820280,1726926662570,-1059.32148,0.00017609,2]
[338820281,1726926662580,-792.65,0.00017612,2]
[338820282,1726926662589,-645.64,0.00017612,2]
[338820283,1726926662598,-500.0,0.00017612,2]
[338820284,1726926662609,-469.43612693,0.00017612,2]
[338820285,1726926662619,-1193.54,0.00017612,2]
[338820286,1726926662628,-328.12941,0.00017612,2]
[338820287,1726926662639,-328.12941,0.00017612,2]
[338820288,1726926662650,-596.93,0.00017612,2]
[338820289,1726926662659,-151.0,0.00017612,2]
[338820290,1726926662669,-473.432147,0.00017612,2]
[338820291,1726926662681,-151.0,0.00017612,2]
[338820292,1726926662692,-151.0,0.00017612,2]
[338820293,1726926662704,-473.432147,0.00017612,2]
[338820294,1726926662714,-177.463496,0.00017612,2]
[338820295,1726926662725,-177.463496,0.00017612,2]
[338820296,1726926662738,-737.547385,0.00017612,2]
[338820297,1726926662748,-737.547385,0.00017612,2]
[338820298,1726926662757,-253.52737714,0.00017612,2]
[338820299,1726926662767,-500.0,0.00017612,2]
[338820300,1726926662776,-500.0,0.00017612,2]
[338820301,1726926662786,-500.0,0.00017612,2]
[338820302,1726926662795,-717.7,0.00017612,2]
[338820303,1726926662806,-500.0,0.00017612,2]
[338820304,1726926662815,-500.0,0.00017613,2]
[338820305,1726926662825,-508.0,0.00017613,2]
[338820306,1726926662834,-787.39,0.00017613,2]
[338820307,1726926662844,-500.0,0.00017613,2]
[338820308,1726926662854,-500.0,0.00017613,2]
[338820309,1726926662864,-500.0,0.00017613,2]
[338820310,1726926662873,-1068.0,0.00017613,2]
[338820311,1726926662883,-500.0,0.00017622,2]
[338820312,1726926662893,-551.77,0.00017622,2]
[338820313,1726926662902,-575.3,0.00017622,2]
[338820314,1726926662912,-625.23,0.00017622,2]
[338820315,1726926662920,-151.0,0.00017624,2]
[338820316,1726926662930,-621.17960901,0.00017689,2]
[338820317,1726926662939,-500.96969178,0.00017746,2]
[338820318,1726926662949,-501.01932587,0.00017746,2]
[338820319,1726926662958,-1500.0,0.00017746,2]
[338820320,1726926662967,-1500.0,0.00017746,2]
[338820321,1726926662978,-303.89639885,0.00017746,2]
[338820322,1726926662987,-1500.0,0.00017746,2]
[338820323,1726926662997,-1500.0,0.00017746,2]
[338820324,1726926663006,-196.14145,0.00017799,2]
[338820325,1726926663016,-196.14145,0.00017799,2]
[338820326,1726926663025,-13571.459999,0.000178,3]
[338820327,1726926663035,-151.0,0.000178,2]
[338820328,1726926663044,-383.9,0.00017808,2]
[338820329,1726926663054,-153.0,0.00017808,2]
[338820330,1726926663064,-151.0,0.0001782,2]
[338820331,1726926663073,-927.96169,0.0001784,2]
[338820332,1726926663083,-539.98,0.00017875,2]
[338820333,1726926663093,-500.0,0.00017875,2]
[338820334,1726926663102,-887.28,0.00017875,2]
[338820335,1726926663112,-200.0,0.00017875,2]
[338820336,1726926663122,-500.0,0.00017875,2]
[338820337,1726926663131,-14753.28,0.00017875,2]
[338820338,1726926663141,-2334.74,0.00017875,2]
[338820339,1726926663152,-508.15,0.00017876,2]
[338820340,1726926663162,-792.65,0.00017886,2]
[338820341,1726926663172,-645.64,0.00017886,2]
[338820342,1726926663181,-500.0,0.00017886,2]
[338820343,1726926663191,-1193.54,0.00017886,2]
[338820344,1726926663201,-596.93,0.00017886,2]
[338820345,1726926663210,-240.11,0.00017886,2]
[338820346,1726926663221,-500.0,0.00017886,2]
[338820347,1726926663230,-500.0,0.00017886,2]
[338820348,1726926663240,-717.7,0.00017886,2]
[338820349,1726926663250,-500.0,0.00017886,2]
[338820350,1726926663259,-500.0,0.00017887,2]
[338820351,1726926663269,-508.0,0.00017887,2]
[338820352,1726926663278,-787.39,0.00017887,2]
[338820353,1726926663288,-500.0,0.00017887,2]
[338820354,1726926663297,-500.0,0.00017887,2]
[338820355,1726926663306,-500.0,0.00017887,2]
[338820356,1726926663316,-1068.0,0.00017887,2]
[338820357,1726926663325,-151.0,0.00017887,2]
[338820358,1726926663334,-151.0,0.00017887,2]
[338820359,1726926663346,-305.498028,0.00017887,2]
[338820360,1726926663357,-192.527021,0.00017887,2]
[338820361,1726926663367,-305.498028,0.00017887,2]
[338820362,1726926663377,-192.527021,0.00017887,2]
[338820363,1726926663386,-500.0,0.00017896,2]
[338820364,1726926663397,-551.77,0.00017896,2]
[338820365,1726926663407,-575.3,0.00017896,2]
[338820366,1726926663417,-625.23,0.00017896,2]
[338820367,1726926663426,-3368.90609362,0.000179,2]
[338820368,1726926663436,-3368.90609361,0.000179,2]
[338820369,1726926663446,-3368.90609361,0.000179,2]
[338820370,1726926663456,-3368.90609361,0.000179,2]
[338820371,1726926663466,-16161.46078643,0.000179,2]
[338820372,1726926663475,-16161.46078642,0.000179,2]
[338820373,1726926663485,-16161.46078642,0.000179,2]
[338820374,1726926663494,-16161.46078642,0.000179,2]
[338820375,1726926663504,-13571.459999,0.000179,4]
[338820376,1726926663513,-151.0,0.000179,2]
[338820377,1726926663522,-151.0,0.000179,2]
[338820378,1726926663531,-151.0,0.000179,2]
[338820379,1726926663541,-576.389103,0.000179,2]
[338820380,1726926663551,-576.389103,0.000179,2]
[338820381,1726926663561,-151.0,0.000179,2]
[338820382,1726926663570,-151.0,0.000179,2]
[338820383,1726926663579,-240.586826,0.000179,2]
[338820384,1726926663589,-705.684641,0.000179,2]
[338820385,1726926663598,-705.684641,0.000179,2]
[338820386,1726926663607,-441.239415,0.000179,2]
[338820387,1726926663617,-441.239415,0.000179,2]
[338820388,1726926663627,-1149.185986,0.000179,2]
[338820389,1726926663638,-151.0,0.000179,2]
[338820390,1726926663648,-1149.185986,0.000179,2]
[338820391,1726926663658,-190.235168,0.000179,2]
[338820392,1726926663667,-151.0,0.000179,2]
[338820393,1726926663676,-151.0,0.000179,2]
[338820394,1726926663686,-1470.685094,0.000179,2]
[338820395,1726926663695,-1470.685094,0.000179,2]
[338820396,1726926663705,-151.0,0.000179,2]
[338820397,1726926663714,-2277.184832,0.000179,2]
[338820398,1726926663724,-2277.184832,0.000179,2]
[338820399,1726926663734,-151.0,0.000179,2]
[338820400,1726926663743,-151.0,0.000179,2]
[338820401,1726926663753,-151.0,0.000179,2]
[338820402,1726926663762,-391.594945,0.000179,2]
[338820403,1726926663772,-391.594945,0.000179,2]
[338820404,1726926663781,-1302.07657,0.000179,2]
[338820405,1726926663790,-208.8866586,0.00017975,2]
[338820406,1726926663800,-208.8866586,0.00017975,2]
[338820407,1726926663809,-200.32255119,0.00018,3]
[338820408,1726926663818,-8423.66061872,0.00018,10]
[338820409,1726926663827,-5301.36617831,0.00018,2]
[338820410,1726926663836,-1874.23,0.00018,5]
[338820411,1726926663845,-10963.48102131,0.00018,2]
[338820412,1726926663854,-8365.37098708,0.00018,2]
[338820413,1726926663863,-151.0,0.00018,2]
[338820414,1726926663873,-1050.96825691,0.00018,2]
[338820415,1726926663882,-207.02102969,0.00018,2]
[338820416,1726926663892,-1000.0,0.00018,2]
[338820417,1726926663901,-10045.58466108,0.00018056,10]
[338820418,1726926663912,-500.0,0.00018058,2]
[338820419,1726926663923,-383.9,0.00018082,2]
[338820420,1726926663934,-539.98,0.00018149,2]
[338820421,1726926663945,-500.0,0.00018149,2]
[338820422,1726926663955,-887.28,0.00018149,2]
[338820423,1726926663965,-200.0,0.00018149,2]
[338820424,1726926663975,-500.0,0.00018149,2]
[338820425,1726926663986,-14753.28,0.00018149,2]
[338820426,1726926663995,-2334.74,0.00018149,2]
[338820427,1726926664005,-508.15,0.0001815,2]
[338820428,1726926664015,-792.65,0.0001816,2]
[338820429,1726926664025,-645.64,0.0001816,2]
[338820430,1726926664035,-500.0,0.0001816,2]
[338820431,1726926664045,-1193.54,0.0001816,2]
[338820432,1726926664055,-596.93,0.0001816,2]
[338820433,1726926664064,-500.0,0.0001816,2]
[338820434,1726926664074,-500.0,0.0001816,2]
[338820435,1726926664085,-717.7,0.0001816,2]
[338820436,1726926664095,-500.0,0.0001816,2]
[338820437,1726926664104,-500.0,0.00018161,2]
[338820438,1726926664113,-508.0,0.00018161,2]
[338820439,1726926664123,-787.39,0.00018161,2]
[338820440,1726926664132,-500.0,0.00018161,2]
[338820441,1726926664141,-562.61110269,0.00018161,2]
[338820442,1726926664152,-500.0,0.00018161,2]
[338820443,1726926664161,-1068.0,0.00018161,2]
[338820444,1726926664171,-500.0,0.0001817,2]
[338820445,1726926664181,-551.77,0.0001817,2]
[338820446,1726926664191,-575.3,0.0001817,2]
[338820447,1726926664201,-625.23,0.0001817,2]
[338820448,1726926664212,-205.0,0.0001817,2]
[338820449,1726926664222,-927.96169,0.0001834,2]
[338820450,1726926664232,-150.0,0.00018344,2]
[338820451,1726926664241,-524.0,0.00018344,2]
[338820452,1726926664251,-1216.0,0.00018344,2]
[338820453,1726926664260,-383.9,0.00018356,2]
[338820454,1726926664269,-539.98,0.00018423,2]
[338820455,1726926664279,-500.0,0.00018423,2]
[338820456,1726926664289,-887.28,0.00018423,2]
[338820457,1726926664299,-200.0,0.00018423,2]
[338820458,1726926664309,-500.0,0.00018423,2]
[338820459,1726926664318,-14753.28,0.00018423,2]
[338820460,1726926664328,-2334.74,0.00018423,2]
[338820461,1726926664339,-508.15,0.00018424,2]
[338820462,1726926664349,-792.65,0.00018433,2]
[338820463,1726926664360,-645.64,0.00018433,2]
[338820464,1726926664370,-151.0,0.00018433,2]
[338820465,1726926664379,-500.0,0.00018433,2]
[338820466,1726926664388,-756.615263,0.00018433,2]
[338820467,1726926664398,-756.615263,0.00018433,2]
[338820468,1726926664407,-1193.54,0.00018433,2]
[338820469,1726926664417,-596.93,0.00018433,2]
[338820470,1726926664426,-594.76524158,0.00018433,2]
[338820471,1726926664436,-500.0,0.00018433,2]
[338820472,1726926664445,-717.7,0.00018433,2]
[338820473,1726926664455,-500.0,0.00018433,2]
[338820474,1726926664464,-500.0,0.00018435,2]
[338820475,1726926664474,-508.0,0.00018435,2]
[338820476,1726926664484,-787.39,0.00018435,2]
[338820477,1726926664494,-500.0,0.00018435,2]
[338820478,1726926664503,-500.0,0.00018435,2]
[338820479,1726926664513,-1068.0,0.00018435,2]
[338820480,1726926664522,-500.0,0.00018444,2]
[338820481,1726926664531,-551.77,0.00018444,2]
[338820482,1726926664540,-575.3,0.00018444,2]
[338820483,1726926664550,-625.23,0.00018444,2]
[338820484,1726926664559,-196.14145,0.00018446,2]
[338820485,1726926664568,-196.14145,0.00018446,2]
[338820486,1726926664577,-14138.27368858,0.00018447,2]
[338820487,1726926664587,-151.0,0.00018447,2]
[338820488,1726926664596,-186.911542,0.00018447,2]
[338820489,1726926664605,-186.911542,0.00018447,2]
[338820490,1726926664614,-823.0,0.00018447,2]
[338820491,1726926664623,-151.0,0.00018455,2]
[338820492,1726926664632,-151.0,0.000185,2]
[338820493,1726926664641,-1000.0,0.000185,2]
[338820494,1726926664651,-620.05898045,0.00018573,2]
[338820495,1726926664660,-383.9,0.0001863,2]
[338820496,1726926664669,-539.98,0.00018697,2]
[338820497,1726926664678,-500.0,0.00018697,2]
[338820498,1726926664687,-887.28,0.00018697,2]
[338820499,1726926664697,-200.0,0.00018697,2]
[338820500,1726926664707,-500.0,0.00018697,2]
[338820501,1726926664716,-14753.28,0.00018697,2]
[338820502,1726926664726,-2334.74,0.00018697,2]
[338820503,1726926664735,-508.15,0.00018698,2]
[338820504,1726926664745,-792.65,0.00018707,2]
[338820505,1726926664754,-645.64,0.00018707,2]
[338820506,1726926664763,-500.0,0.00018707,2]
[338820507,1726926664773,-1193.54,0.00018707,2]
[338820508,1726926664782,-596.93,0.00018707,2]
[338820509,1726926664791,-167.56,0.00018707,2]
[338820510,1726926664801,-717.7,0.00018707,2]
[338820511,1726926664810,-500.0,0.00018707,2]
[338820512,1726926664819,-500.0,0.00018709,2]
[338820513,1726926664829,-508.0,0.00018709,2]
[338820514,1726926664838,-787.39,0.00018709,2]
[338820515,1726926664848,-500.0,0.00018709,2]
[338820516,1726926664858,-500.0,0.00018709,2]
[338820517,1726926664867,-1068.0,0.00018709,2]
[338820518,1726926664877,-500.0,0.00018718,2]
[338820519,1726926664888,-551.77,0.00018718,2]
[338820520,1726926664898,-575.3,0.00018718,2]
[338820521,1726926664907,-625.23,0.00018718,2]
[338820522,1726926664916,-361.24522872,0.00018885,2]
[338820523,1726926664926,-550.0,0.000189,2]
[338820524,1726926664935,-151.0,0.00018904,2]
[338820525,1726926664946,-151.0,0.00018904,2]
[338820526,1726926664957,-151.0,0.00018904,2]
[338820527,1726926664967,-203.06697,0.00018904,2]
[338820528,1726926664976,-203.06697,0.00018904,2]
[338820529,1726926664985,-476.00754,0.00018904,2]
[338820530,1726926664995,-476.00754,0.00018904,2]
[338820531,1726926665004,-383.9,0.00018904,2]
[338820532,1726926665013,-2705.41380132,0.00018904,2]
[338820533,1726926665023,-663.97882779,0.00018934,2]
[338820534,1726926665032,-539.98,0.00018971,2]
[338820535,1726926665041,-200.19596561,0.00018971,2]
[338820536,1726926665051,-887.28,0.00018971,2]
[338820537,1726926665060,-200.0,0.00018971,2]
[338820538,1726926665069,-151.0,0.00018971,2]
[338820539,1726926665079,-151.0,0.00018971,2]
[338820540,1726926665088,-1353.282061,0.00018971,2]
[338820541,1726926665097,-1353.282061,0.00018971,2]
[338820542,1726926665106,-740.186254,0.00018971,2]
[338820543,1726926665115,-740.186254,0.00018971,2]
[338820544,1726926665125,-1106.068843,0.00018971,2]
[338820545,1726926665134,-442.887488,0.00018971,2]
[338820546,1726926665143,-1106.068843,0.00018971,2]
[338820547,1726926665153,-500.0,0.00018971,2]
[338820548,1726926665163,-442.887488,0.00018971,2]
[338820549,1726926665173,-151.0,0.00018971,2]
[338820550,1726926665182,-151.0,0.00018971,2]
[338820551,1726926665191,-151.0,0.00018971,2]
[338820552,1726926665200,-228.217079,0.00018971,2]
[338820553,1726926665209,-228.217079,0.00018971,2]
[338820554,1726926665335,-14753.28,0.00018971,2]
[338820555,1726926665345,-180.172731,0.00018971,2]
[338820556,1726926665356,-180.172731,0.00018971,2]
[338820557,1726926665366,-2334.74,0.00018971,2]
[338820558,1726926665376,-508.15,0.00018972,2]
[338820559,1726926665385,-792.65,0.00018981,2]
[338820560,1726926665395,-645.64,0.00018981,2]
[338820561,1726926665404,-500.0,0.00018981,2]
[338820562,1726926665413,-1193.54,0.00018981,2]
[338820563,1726926665422,-596.93,0.00018981,2]
[338820564,1726926665432,-717.7,0.00018981,2]
[338820565,1726926665441,-196.7463439,0.00018981,2]
[338820566,1726926665451,-195.86104271,0.00018983,2]
[338820567,1726926665460,-508.0,0.00018983,2]
[338820568,1726926665470,-787.39,0.00018983,2]
[338820569,1726926665481,-500.0,0.00018983,2]
[338820570,1726926665490,-500.0,0.00018983,2]